Cogmind - Beta 11.1 @@@ ROGUE MODE // 2022.06.30 @ 10:56:47 Player: deepledi Result: Self-destructed Performance ------------- Evolutions (1) 500 Regions Visited (3) 600 Robots Destroyed (23) 115 Value Destroyed (522) 522 Prototype IDs (1) 20 Alien Tech Used (0) 0 Bonus (0) 0 TOTAL SCORE: 1757 Bonus ------- None Cogmind --------- Core Integrity 400/400 Matter 280/300 Energy 159/160 System Corruption 0% Temperature Cool (2) Movement Flying (37) Location -9/Materials Parts ------- > --- POWER (1) -------- Light Nuclear Core > --- PROPULSION (3) --- Flight Unit Flight Unit > --- UTILITY (3) ------ Improved Heat Sink Signal Interpreter > --- WEAPON (2) ------- (None) > --- INVENTORY (5) ---- Light Nuclear Core Experimental Sensor Array Medium Laser Datajack Peak State ------------ > --- POWER ------------ Light Nuclear Core > --- PROPULSION ------- Flight Unit Flight Unit > --- UTILITY ---------- Improved Heat Sink Experimental Sensor Array > --- WEAPON ----------- (None) > --- INVENTORY -------- Light Nuclear Core Signal Interpreter Medium Laser Small Laser Datajack [Rating: 17] Favorites ----------- Power Light Ion Engine Engine Light Ion Engine Power Core Light Nuclear Core Propulsion Wheel Wheel Wheel Flight Unit Flight Unit Utility Small Storage Unit Device Improved Heat Sink Storage Small Storage Unit Processor Signal Interpreter Weapon Light Assault Rifle Energy Gun Small Laser Ballistic Gun Light Assault Rifle Build | -11 -10 -10 -9 ------- Run | Scr Mat Min Mat Slots Evolved 2 | . . . 2 Power . | . . . . Propulsion 1 | . . . 1 Utility 1 | . . . 1 Weapon . | . . . . Parts Attached 32 | 10 17 4 1 Power 5 | 3 2 . . Engine 3 | 3 . . . Core 2 | . 2 . . Reactor . | . . . . Propulsion 12 | 3 7 2 . Treads . | . . . . Leg . | . . . . Wheel 8 | 3 5 . . Hover . | . . . . Flight 4 | . 2 2 . Utility 7 | 2 2 2 1 Device 5 | 1 2 2 . Storage 1 | 1 . . . Processor 1 | . . . 1 Hackware . | . . . . Protection . | . . . . Artifact . | . . . . Weapon 8 | 2 6 . . Energy Gun 5 | . 5 . . Energy Cannon . | . . . . Ballistic Gun 3 | 2 1 . . Ballistic Cannon . | . . . . Launcher . | . . . . Special Weapon . | . . . . Impact Weapon . | . . . . Slashing Weapon . | . . . . Piercing Weapon . | . . . . Special Melee Weapon . | . . . . Unidentified Prototypes 1 | . . 1 . Parts Lost 8 | . 6 2 . Power 1 | . 1 . . Propulsion 3 | . 2 1 . Utility 1 | . 1 . . Weapon 3 | . 2 1 . Highest Loss Streak 3 | . 3 2 . To Critical Strikes . | . . . . Average Slot Usage (%) 85 | . 92 61 55 Engine 7 | . 9 . . Core 6 | . 4 14 11 Wheel 17 | . 22 1 . Flight 5 | . . 23 22 Device 13 | . 12 15 11 Storage 11 | . 14 3 . Energy Gun 9 | . 12 3 . Ballistic Gun 12 | . 15 . . Naked Turns . | . . . . Heaviest Build 13 | 11 13 7 6 Greatest Support 26 | 26 20 8 8 Greatest Overweight (x) 1 | 1 1 . . Average Overweight (x) . | . . . . Largest Inventory Capacity 8 | 8 8 8 5 Average Capacity 7 | 6 8 5 5 Most Carried 8 | 5 8 8 4 Average Carried 5 | 3 6 5 4 Final Capacity 8 | 8 8 5 5 Final Carried 8 | 3 8 5 4 Class Distribution -------------------- 75% | Mutant 24% | Scavenger-Mutant Dominant Class ---------------- Mutant | -10/Materials Scavenger-Mutant | -10/Mines Scavenger-Mutant | -9/Materials Resources | -11 -10 -10 -9 ----------- Run | Scr Mat Min Mat Matter Collected 591 | 182 377 32 . Remotely . | . . . . Salvage Created 811 | 62 701 48 . Parts 47 | 5 37 5 . Haulers Intercepted . | . . . . Recyclers Shooed 4 | . 4 . . Parts Field Recycled . | . . . . Retrieved Matter . | . . . . Parts Self-Destructed . | . . . . Prevented . | . . . . Kills | -11 -10 -10 -9 ------- Run | Scr Mat Min Mat Combat Hostiles Destroyed 18 | . 15 3 . Guns 18 | . 15 3 . Classes Destroyed 5 | 1 4 . . Worker 1 | . 1 . . Tunneler 3 | 3 . . . Recycler 1 | . 1 . . Swarmer 6 | . 3 3 . Grunt 12 | . 12 . . Best Kill Streak 4 | 3 4 3 . Combat Bots Only 4 | . 4 3 . Max Kills in Single Turn 1 | 1 1 1 . Gunslinging . | . . . . Exploded . | . . . . Melee . | . . . . Uniques/NPCs Destroyed . | . . . . Combat | -11 -10 -10 -9 -------- Run | Scr Mat Min Mat Damage Taken 857 | . 780 65 12 Core 238 | . 214 24 . Absorbed by Shields . | . . . . Core Remaining (%) 52 | 100 . 4 . Volleys Fired 100 | 7 86 7 . Largest 2 | 2 2 2 . Hottest 80 | 40 80 80 . Shots Fired 191 | 14 169 8 . Gun 191 | 14 169 8 . Cannon . | . . . . Launcher . | . . . . Special . | . . . . Kinetic 128 | 14 114 . . Thermal 63 | . 55 8 . Explosive . | . . . . Electromagnetic . | . . . . Robot Hit Streak 18 | 4 18 12 . Robot Miss Streak 4 | 2 4 1 . Penetration Max . | . . . . Secondary Targets 2 | . 1 1 . Max Gunslinging Chain 1 | . 1 1 . Shots Hit Robots 127 | 9 112 6 . Core Hits 47 | 5 39 3 . Critical Kills 1 | . 1 . . Critical Parts Destroyed 1 | . 1 . . Critical Strikes 2 | . 2 . . Destroy 2 | . 2 . . Melee Attacks . | . . . . Impact . | . . . . Slashing . | . . . . Piercing . | . . . . Sneak Attacks . | . . . . Combat Hostiles . | . . . . Follow-up Attacks . | . . . . Damage Inflicted 1168 | 82 1017 69 . Guns 1162 | 82 1011 69 . Cannons . | . . . . Explosions . | . . . . Melee . | . . . . Ramming 6 | . 6 . . Kinetic 680 | 82 598 . . Thermal 482 | . 413 69 . Explosive . | . . . . Electromagnetic . | . . . . Impact . | . . . . Slashing . | . . . . Piercing . | . . . . Highest Corruption . | . . . . Average Corruption . | . . . . Corruption Purged . | . . . . Corruption Blocked . | . . . . Overload Shots . | . . . . Overflow Damage . | . . . . Projectiles . | . . . . Explosions . | . . . . Melee . | . . . . Knockbacks . | . . . . Impact . | . . . . Kinetic . | . . . . Secondary . | . . . . Self-Inflicted Damage 3 | . 3 . . Shots . | . . . . Rammed 1 | . 1 . . Targets Rammed 1 | . 1 . . Kicked . | . . . . Crushed . | . . . . Highest Temperature 114 | . 114 . . Average Temperature 39 | . 39 . . Received Heat Transfer 369 | . 363 . 6 Siege Activations . | . . . . Robots Corrupted . | . . . . Combat Hostiles . | . . . . Parts Fried . | . . . . Impact Corruptions . | . . . . Robots Melted . | . . . . Combat Hostiles . | . . . . Parts Melted 3 | . 3 . . Heat Transferred 1100 | . 950 150 . Parts Sabotaged . | . . . . Parts Stolen . | . . . . Parts Stripped . | . . . . Power Chain Reactions . | . . . . Missiles Intercepted . | . . . . Alert | -11 -10 -10 -9 ------- Run | Scr Mat Min Mat Peak Influence 314 | 15 314 141 84 Initial 91 | . 9 91 54 Average 133 | 4 156 137 57 Maximum Alert Level 1 | . 1 . . Low Security (%) 79 | 100 71 100 100 Level 1 20 | . 28 . . Level 2 . | . . . . Level 3 . | . . . . Level 4 . | . . . . Level 5 . | . . . . High Security . | . . . . Max Security . | . . . . Squads Dispatched 4 | . 4 . . Investigation 1 | . 1 . . Extermination . | . . . . Reinforcement 3 | . 3 . . Assault . | . . . . Garrison . | . . . . Intercept . | . . . . Searches Triggered . | . . . . Construction Impeded . | . . . . Haulers Reinforced . | . . . . Active Scanning Responses . | . . . . Cargo Convoy Interrupts . | . . . . Stealth | -11 -10 -10 -9 --------- Run | Scr Mat Min Mat Distress Signals 3 | . 2 . 1 Communications Jammed . | . . . . Distress Signals . | . . . . Times Spotted 37 | . 29 2 6 Peak Tracking Total 7 | . 7 2 7 Tactical Retreats 1 | . 1 . . Traps | -11 -10 -10 -9 ------- Run | Scr Mat Min Mat Traps Triggered 3 | . 3 . . Indirectly . | . . . . Trap Hack Attempts . | . . . . Triggered . | . . . . Disarmed . | . . . . Reprogrammed . | . . . . Reused . | . . . . Traps Extracted . | . . . . Installed . | . . . . Triggered . | . . . . Machines | -11 -10 -10 -9 ---------- Run | Scr Mat Min Mat Machines Disabled . | . . . . Max in Single Turn . | . . . . Machines Sabotaged . | . . . . Garrisons Compromised . | . . . . Overloaded Fab Kills . | . . . . Hacking | -11 -10 -10 -9 --------- Run | Scr Mat Min Mat Machines Accessed 2 | . 1 . 1 Terminals 2 | . 1 . 1 Fabricators . | . . . . Repair Stations . | . . . . Recycling Units . | . . . . Scanalyzers . | . . . . Garrison Access . | . . . . Total Hacks 4 | . 2 . 2 Successful 2 | . 2 . . Failed 2 | . . . 2 Catastrophic . | . . . . Database Lockouts . | . . . . Manual 4 | . 2 . 2 Terminals 4 | . 2 . 2 Fabricators . | . . . . Repair Stations . | . . . . Recycling Units . | . . . . Scanalyzers . | . . . . Garrison Access . | . . . . Terminal Hacks 1 | . 1 . . Alert Level 1 | . 1 . . Fabricator Hacks . | . . . . Repair Station Hacks . | . . . . Recycling Unit Hacks . | . . . . Scanalyzer . | . . . . Garrison Access Hacks . | . . . . Unauthorized Hacks 1 | . 1 . . Terminals 1 | . 1 . . Botnet 1 | . 1 . . Fabricators . | . . . . Repair Stations . | . . . . Recycling Units . | . . . . Scanalyzers . | . . . . Garrison Access . | . . . . Data Cores Recovered . | . . . . Used . | . . . . Hacking Detections 1 | . . . 1 Full Trace Events . | . . . . Feedback Events . | . . . . Feedback Blocked . | . . . . Robot Schematics Acquired . | . . . . Robots Built . | . . . . Authchips . | . . . . Time . | . . . . Total Robot Build Rating . | . . . . Part Schematics Acquired . | . . . . Parts Built . | . . . . Authchips . | . . . . Time . | . . . . Total Part Build Rating . | . . . . Parts Repaired . | . . . . Time . | . . . . Parts Recycled . | . . . . Recycled Matter . | . . . . Retrieved Matter . | . . . . Retrieved Components . | . . . . Parts Scanalyzed . | . . . . Part Schematics Acquired . | . . . . Parts Damaged . | . . . . Bothacking | -11 -10 -10 -9 ------------ Run | Scr Mat Min Mat Used RIF Installer . | . . . . Robots Hacked . | . . . . Non-combat . | . . . . Combat . | . . . . Robot Hacks Applied . | . . . . Relay Couplers Released . | . . . . Fabnet Peak Effective % . | . . . . Robots Rewired . | . . . . Allies Hacked . | . . . . Hacks Repelled . | . . . . Allies | -11 -10 -10 -9 -------- Run | Scr Mat Min Mat Total Allies . | . . . . Largest Group . | . . . . Highest-Rated Group . | . . . . Highest-Rated Ally . | . . . . Total Orders . | . . . . Ally Attacks . | . . . . Total Damage . | . . . . Kills . | . . . . Allies Corrupted . | . . . . Allies Melted . | . . . . Intel | -11 -10 -10 -9 ------- Run | Scr Mat Min Mat Robot Analysis Total . | . . . . Derelict Logs Recovered . | . . . . Drone Launches . | . . . . Drone Recoveries . | . . . . Exploration | -11 -10 -10 -9 ------------- Run | Scr Mat Min Mat Turns Passed 1007 | 85 723 121 78 Spaces Moved 953 | 59 471 216 207 Core 7 | 7 . . . Treads . | . . . . Legs . | . . . . Wheels 523 | 52 471 . . Hover . | . . . . Flight 423 | . . 216 207 Fastest Speed 37 | 50 80 37 37 Average Speed 63 | 78 85 37 37 Slowest Speed 95 | 95 95 37 37 Overloaded Moves . | . . . . Propulsion Burnouts . | . . . . Robots Hopped . | . . . . Cave-ins Triggered . | . . . . Exploration Rate (%) 36 | 3 73 45 26 Regions Visited 3 Branch Regions 1 Pre-discovered Areas . | . . . . Known Exits Taken . | . . . . Unknown Exits Taken 3 | 1 1 1 . Scrap Searched . | . . . . Spaces Dug . | . . . . Terrain Destroyed . | . . . . Melee . | . . . . Projectile . | . . . . AOE . | . . . . Terrain Rammed . | . . . . Walls Destroyed . | . . . . Machines Disabled . | . . . . Actions | -11 -10 -10 -9 --------- Run | Scr Mat Min Mat Total 1187 | 84 643 252 208 Wait 63 | . 48 15 . Move 950 | 58 470 215 207 Hop . | . . . . Pick Up 24 | 8 14 2 . Fast Attach 8 | 3 4 1 . Attach 15 | 4 7 3 1 Detach 4 | . 1 3 . Swap 9 | 3 6 . . Drop 13 | 1 6 6 . Fire 100 | 7 86 7 . Melee . | . . . . Ram 1 | . 1 . . Kick . | . . . . Crush . | . . . . Escape Stasis . | . . . . Rewire . | . . . . Trap . | . . . . Miscellaneous . | . . . . Route ------- -11/Scrapyard -10/Materials -10/Mines -9/Materials History --------- Turn | Location | Event 15 | -11/Scrapyard | Discovered new exit (range 16) 86 | -11/Scrapyard | Entered Materials 316 | -10/Materials | Build established: Mutant 447 | -10/Materials | Core integrity fell below 50% 464 | -10/Materials | Lost 3 parts (1n1u1w) 492 | -10/Materials | Discovered new exit (range 13) 597 | -10/Materials | Lost 3 parts (1p1n1w) 733 | -10/Materials | Core integrity fell below 20% 809 | -10/Materials | Entered Mines 866 | -10/Mines | Met a Derelict bent on vengeance 873 | -10/Mines | A weapon hastily lodged in a ceiling crevice suddenly fell to the ground 890 | -10/Mines | Found a damaged Exp. Sensor Array with a note attached 891 | -10/Mines | Found Prototype Device 891 | -10/Mines | Identified Exp. Sensor Array 919 | -10/Mines | Discovered new exit (range 6) 930 | -10/Mines | Entered Materials 930 | -9/Materials | Evolved 2 slots: Propulsion x1, Utility x1 1008 | -9/Materials | Self-destructed Last Messages --------------- 00891_ Acquired Prototype Device. 00891_ Identified Exp. Sensor Array. 00900_ Dropped Sml. Laser. 00914_ K-01 Serf collects debris. 00919_ EXIT=FOUND 00921_ An audio recording is triggered: "If you're looking for Megawrench, sorry but we're not in our cave right now, after essentially being evicted by all these Unaware tunnelers." 00924_ "Blame H1-IDC, who apparently didn't care about the consequences of repeatedly making a mess in Materials. Shooting at robots and generally destroying stuff raised the alert level high enough to trigger assault squads over in the main complex, and they later decided the best way to defend their interests would be to start expanding in this direction." PARAMETERS=PROPULSION+1,UTILITY+1 LOCATION=UNKNOWN GOAL=ESCAPE 00938_ Connecting with Terminal... 00938_ Current location identified: Materials 00943_ K-01 Serf collects debris. 01005_ W-16 Scout sends out distress signal. Map ----- +----------------------------------------------------+ | ?????????????????# ## """ # # + | | ?????????????????# ## # # ## | | ??????????????#######+############# ###########? | | ??????????????# #??????????? | | ??????????????# #??????????? | | ??????????????# #??????????? | | ??????????????# #####+########### #??????????? | | ??????????????# # #??????# #??????????? | | ??????????????# # #??????# #??????????? | | ??????????????# # """ #?????? #?????????? | | ??????????????# # """"" #?????? #?????????? | | ??????????????# # """"" #?????? /?????????? | | ??????????????# # """"" #?????? # ????????? | | ??????????????# # """ #?????? # ???????? | | ??????????????# # ] #??????# ##? ??????? | | ??????????????# # ? #??????? #??###?????? | | ??????????????# ##########??????? #??????????? | | ??????????????# # #??????? +??????????? | | ??????????????# # """"" #??????? #??????????? | | ??????????????# # """"" #??????? ???????????? | | ??????????????# + """"" #?????????????????????? | | ??????????????# # """"" #?????????????????????? | | ??????????????# # """"" #?????????????????????? | | ??????????????# # """"" #?????????????????????? | | ????????????? # """"" #?????????????????????? | | ???????????? # w @ #?????????????????????? | | ??????????? """ ####+#####?????????????????????? | | ?????????? "T" #??# #?????????????????????????? | | ????????? #??# #?????????????????????????? | | ???????? ? #??# #?????????????????????????? | | ???????# !???? #??# #?????????????????????????? | | ???????# ?????? ??? ?????????????????????????? | | ??????????????? ??? ?????????????????????????? | | ??????????????? ??? ?????????????????????????? | | ???????????????###???###?????????????????????????? | | ?????????????????????????????????????????????????? | | ?????????????????????????????????????????????????? | | ?????????????????????????????????????????????????? | | ?????????????????????????????????????????????????? | | ?????????????????????????????????????????????????? | | ?????????????????????????????????????????????????? | | ?????????????????????????????????????????????????? | | ?????????????????????????????????????????????????? | | ?????????????????????????????????????????????????? | | ?????????????????????????????????????????????????? | | ?????????????????????????????????????????????????? | | ?????????????????????????????????????????????????? | | ?????????????????????????????????????????????????? | | ?????????????????????????????????????????????????? | | ?????????????????????????????????????????????????? | +----------------------------------------------------+ Best States ------------- Heat Dissipation 42 Energy Generation 14 Energy Capacity 160 Matter Stores 300 Matter Capacity 300 Sight Range 16 Robot Scan Range 20 Terrain Scan Density 10 Evasion (%) 62 Item Schematics ----------------- None Robot Schematics ------------------ None Fabricated ------------ Nothing Alien Tech Used ----------------- None Achievements -------------- None Challenges ------------ None Game ------ Seed AntimissileHardenedShifter Manual? 0 Play Time 00:12:21 Cumulative 60.2 hours Start 2022.06.30 @ 10:45:45 End 2022.06.30 @ 10:56:47 Sessions 1 Manual Loads 0 Difficulty Rogue Special Mode None Game No. 62 Rogue 62 Adventurer 0 Explorer 0 Win Type - Total 0 Types 0/0/0/0/0/0/0/0/0 Lore% 34 Gallery% 48 Achievement% 40 Wizard Run 0 Options --------- ASCII 0 Keyboard 0 Movement Arrows Keybinds 0 Fullscreen 2 Font 18/SmallcapsGlow Map View 76x50 Tactical HUD 1 Map Filters NONE Filters NONE Steam 1 RUN: 324977f7-ef67-4141-afce-2eba850b0e65